[Event "XIII Mediterranean Championship 2023"]
[Site "Castell-Platja d Aro"]
[Date "2023.11.08"]
[Round "6.25"]
[White "Vinals Rioja, Jaume"]
[Black "Zvereva, Marija"]
[Result "0-1"]
[ECO "B23"]
[WhiteElo "1838"]
[BlackElo "2144"]
[Annotator "RC"]
[PlyCount "34"]
[EventDate "2023.10.26"]
[EventType "swiss"]
[EventCountry "ESP"]
[SourceTitle "playchess.com"]
[Source "ChessBase"]
[SourceQuality "1"]
[TimeControl "5400+30"]

1. e4 {[%emt 0:00:04]} c5 {[%emt 0:03:28]} 2. Nc3 {[%emt 0:00:17]} Nc6 {[%emt 0:00:27]} 3. Bb5 {[%emt 0:01:03]} g6 {[%emt 0:04:08]} 4. d3 {[%emt 0:01:13]} Bg7 {[%emt 0:00:24]} 5. Bxc6 {[%emt 0:01:58]} bxc6 {[%emt 0:04:32]} 6. f4 {[%emt 0:01:20]} d6 7. Nf3 {[%emt 1:28:05]} Nf6 {[%emt 1:21:01]} 8. O-O {[%emt 0:00:00]} O-O {[%emt 0:00:30]} 9. Qe1 {[%emt 0:01:00]} Ne8 {[%emt 0:00:00]} 10. b3 {[%emt 0:00:00]} Nc7 {[%emt 0:00:00]} 11. a4 {[%emt 0:00:00]} Rb8 {[%emt 0:00:00]} 12. Bb2 {[%emt 0:00:00]} Ne6 {[%emt 0:00:00]} 13. Nd1 {[%emt 0:00:00]} Nxf4 {[%emt 0:00:00]} 14. Bxg7 {[%emt 0:00:00]} Kxg7 {[%emt 0:00:00]} 15. e5 {[%emt 0:00:00]} Qd7 {[%emt 0:00:00]} 16. Nf2 {[%emt 0:00:00]} d5 {[%emt 0:00:00]} 17. Qc3 {[%emt 0:00:00]} Ne2+ {[%emt 0:04:30]} 0-1

[Event "XIII Mediterranean Championship 2023"]
[Site "Castell-Platja d Aro"]
[Date "2023.11.08"]
[Round "6.26"]
[White "Lunin Bohomolets, Iliia"]
[Black "Vinolas Anglada, Laura"]
[Result "1/2-1/2"]
[ECO "C78"]
[WhiteElo "1850"]
[BlackElo "1884"]
[Annotator "NA RC"]
[PlyCount "70"]
[EventDate "2023.10.26"]
[EventType "swiss"]
[EventCountry "ESP"]
[SourceTitle "playchess.com"]
[Source "ChessBase"]
[SourceQuality "1"]
[TimeControl "5400+30"]

1. e4 {[%emt 1:31:00]} e5 {[%emt 1:31:00]} 2. Nf3 {[%emt 0:00:30]} Nc6 {[%emt 0:00:30]} 3. Bb5 {[%emt 0:00:30]} a6 {[%emt 0:00:30]} 4. Ba4 {[%emt 0:00:30]} Nf6 {[%emt 0:00:30]} 5. O-O {[%emt 0:00:30]} b5 {[%emt 0:00:30]} 6. Bb3 {[%emt 0:00:30]} Bb7 {[%emt 0:00:30]} 7. d3 {[%emt 0:00:30]} Bc5 {[%emt 0:00:30]} 8. Be3 {[%emt 0:00:30]} d6 {[%emt 0:00:30]} 9. Bxc5 {[%emt 0:00:30]} dxc5 {[%emt 0:00:30]} 10. a4 {[%emt 0:00:30]} O-O {[%emt 0:00:30]} 11. Nc3 {[%emt 0:00:30]} b4 {[%emt 0:00:30]} 12. Ne2 {[%emt 0:00:30]} Qd6 {[%emt 0:00:30]} 13. Ng3 {[%emt 0:00:30]} Bc8 {[%emt 0:00:30]} 14. h3 {[%emt 0:00:30]} Nd4 {[%emt 0:00:30]} 15. Nxd4 {[%emt 0:00:30]} cxd4 {[%emt 0:00:30]} 16. a5 {[%emt 0:00:30]} Rd8 {[%emt 0:00:30]} 17. Qf3 {[%emt 0:00:30]} Be6 {[%emt 0:00:30]} 18. Nf5 {[%emt 0:00:30]} Qd7 {[%emt 0:00:30]} 19. Ba4 {[%emt 0:00:30]} c6 {[%emt 0:00:30]} 20. Bxc6 {[%emt 0:00:30]} Qc7 {[%emt 0:00:30]} 21. Bxa8 {[%emt 0:00:30]} Rxa8 {[%emt 0:00:30]} 22. Rfc1 {[%emt 0:00:30]} Rb8 {[%emt 0:00:30]} 23. Qg3 {[%emt 0:00:30]} Bxf5 {[%emt 0:00:30]} 24. exf5 {[%emt 0:00:30]} Rb5 {[%emt 0:00:30]} 25. Qf3 {[%emt 0:00:30]} Nd5 {[%emt 0:00:30]} 26. f6 {[%emt 0:00:30]} gxf6 {[%emt 0:00:30]} 27. Qg4+ {[%emt 0:00:30]} Kh8 {[%emt 0:00:30]} 28. Qf5 {[%emt 0:00:30]} Rc5 {[%emt 0:00:30]} 29. Re1 {[%emt 0:00:30]} Qc6 {[%emt 0:00:30]} 30. Re4 {[%emt 0:00:30]} Nf4 {[%emt 0:00:30]} 31. g3 {[%emt 0:00:30]} Ng6 {[%emt 0:00:30]} 32. Re2 {[%emt 0:00:30]} Kg7 {[%emt 0:00:30]} 33. Qe4 {[%emt 0:00:30]} Qc7 {[%emt 0:00:30]} 34. Qa8 {[%emt 0:00:30]} Rxa5 {[%emt 0:00:30]} 35. Rxa5 Qxa5 1/2-1/2

[Event "XIII Mediterranean Championship 2023"]
[Site "Castell-Platja d Aro"]
[Date "2023.11.08"]
[Round "6.27"]
[White "Giro Castellet, Esteve"]
[Black "Canigueral Salvado, Jaume"]
[Result "0-1"]
[ECO "C01"]
[WhiteElo "1633"]
[BlackElo "1853"]
[Annotator "NA RC"]
[PlyCount "70"]
[EventDate "2023.10.26"]
[EventType "swiss"]
[EventCountry "ESP"]
[SourceTitle "playchess.com"]
[Source "ChessBase"]
[SourceQuality "1"]
[TimeControl "5400+30"]

1. d4 {[%emt 0:00:03]} e6 {[%emt 0:00:20]} 2. e4 {[%emt 0:00:28]} d5 {[%emt 0:00:10]} 3. exd5 {[%emt 0:00:55]} exd5 {[%emt 0:00:13]} 4. Be2 {[%emt 0:01:20]} Nf6 {[%emt 0:00:47]} 5. Bg5 {[%emt 0:00:56]} Be7 {[%emt 0:00:34]} 6. Nf3 {[%emt 0:00:08]} h6 {[%emt 0:00:23]} 7. Bf4 {[%emt 0:02:35]} Be6 {[%emt 0:01:57]} 8. Nbd2 {[%emt 0:01:19]} c6 {[%emt 0:01:08]} 9. O-O {[%emt 0:03:10]} O-O {[%emt 0:01:09]} 10. c3 {[%emt 0:00:22]} Nbd7 {[%emt 0:00:50]} 11. Qc2 {[%emt 0:00:48]} c5 {[%emt 0:01:52]} 12. Rfe1 {[%emt 0:01:16]} Rc8 {[%emt 0:01:32]} 13. Rac1 {[%emt 0:03:21]} Qb6 {[%emt 0:02:31]} 14. Nb3 {[%emt 0:08:27]} c4 {[%emt 0:08:46]} 15. Nbd2 {[%emt 0:01:28]} Bd6 {[%emt 0:01:23]} 16. Ne5 {[%emt 0:02:57]} Bxe5 {[%emt 1:14:55]} 17. dxe5 {[%emt 0:04:40]} Ng4 {[%emt 0:00:00]} 18. Bxg4 {[%emt 0:00:04]} Bxg4 {[%emt 0:00:00]} 19. Be3 {[%emt 0:00:33]} Qc7 {[%emt 0:00:00]} 20. Bd4 {[%emt 0:01:14]} Nc5 {[%emt 0:02:00]} 21. Re3 {[%emt 0:08:04]} Nd3 {[%emt 0:00:00]} 22. Rd1 {[%emt 0:00:43]} Bxd1 {[%emt 0:00:00]} 23. Qxd1 {[%emt 0:00:24]} Qe7 {[%emt 0:00:00]} 24. Rg3 {[%emt 0:01:56]} Qe6 {[%emt 0:00:00]} 25. Qf3 {[%emt 0:05:32]} Rc6 {[%emt 0:00:00]} 26. Qe3 {[%emt 0:05:18]} Kh7 {[%emt 0:00:00]} 27. b3 {[%emt 0:04:03]} b5 {[%emt 0:00:00]} 28. Nf3 {[%emt 0:04:17]} Qf5 {[%emt 0:00:00]} 29. e6 {[%emt 0:05:57]} f6 {[%emt 0:00:00]} 30. e7 {[%emt 0:13:12]} Re8 {[%emt 0:00:00]} 31. Nh4 {[%emt 0:05:06]} Qh5 {[%emt 0:00:00]} 32. Nf3 {[%emt 0:01:16]} Qf7 {[%emt 0:00:00]} 33. Nh4 {[%emt 0:07:28]} Rxe7 {[%emt 0:00:00]} 34. Rxg7+ {[%emt 0:05:28]} Qxg7 {[%emt 0:07:00]} 35. Qe1 {[%emt 0:03:12]} Qf7 0-1

[Event "XIII Mediterranean Championship 2023"]
[Site "Castell-Platja d Aro"]
[Date "2023.11.08"]
[Round "6.28"]
[White "Leon Escoda, Manel"]
[Black "Diaz Comas, Jordi"]
[Result "0-1"]
[ECO "B00"]
[WhiteElo "1682"]
[BlackElo "1837"]
[Annotator "NA RC"]
[PlyCount "122"]
[EventDate "2023.10.26"]
[EventType "swiss"]
[EventCountry "ESP"]
[SourceTitle "playchess.com"]
[Source "ChessBase"]
[SourceQuality "1"]
[TimeControl "5400+30"]

1. e4 {[%emt 1:31:00]} Nc6 {[%emt 1:31:00]} 2. d4 {[%emt 0:00:30]} e5 {[%emt 0:00:30]} 3. dxe5 {[%emt 0:00:30]} Nxe5 {[%emt 0:00:30]} 4. Nf3 {[%emt 0:00:30]} Ng6 {[%emt 0:00:30]} 5. Bc4 {[%emt 0:00:30]} Bc5 {[%emt 0:00:30]} 6. Bxf7+ {[%emt 0:00:30]} Kf8 {[%emt 0:00:30]} 7. Bxg8 {[%emt 0:00:30]} Rxg8 {[%emt 0:00:30]} 8. Ng5 {[%emt 0:00:30]} Rh8 {[%emt 0:00:30]} 9. Qd5 {[%emt 0:00:30]} Qe7 {[%emt 0:00:30]} 10. Qf5+ {[%emt 0:00:30]} Kg8 {[%emt 0:00:30]} 11. Nxh7 {[%emt 0:00:30]} Nh4 {[%emt 0:00:30]} 12. Qd5+ {[%emt 0:00:30]} Kxh7 13. Bg5 Nxg2+ 14. Kf1 Ne3+ 15. fxe3 Qd6 16. Qxd6 {[%emt 0:02:00]} Bxd6 17. Ke2 {[%emt 0:00:30]} Be5 18. Nc3 {[%emt 0:00:30]} Bxc3 19. bxc3 {[%emt 0:00:30]} d6 20. Raf1 {[%emt 0:00:30]} Be6 21. Kd3 {[%emt 0:00:30]} Bxa2 22. c4 {[%emt 0:00:30]} b5 23. cxb5 {[%emt 0:00:30]} Be6 24. Ra1 {[%emt 0:00:30]} Bc8 25. Rhf1 {[%emt 0:00:30]} Kg6 {[%emt 0:07:00]} 26. h4 {[%emt 0:00:30]} Re8 {[%emt 0:00:30]} 27. c4 {[%emt 0:00:30]} Bb7 {[%emt 0:00:30]} 28. Rf4 {[%emt 0:00:30]} a6 {[%emt 0:00:30]} 29. Rg1 {[%emt 0:00:30]} Kh7 30. h5 {[%emt 0:00:30]} axb5 31. h6 {[%emt 0:00:30]} bxc4+ 32. Kc3 Rf8 33. Rxf8 Rxf8 34. hxg7 {[%emt 0:01:30]} Rg8 35. Bf6 {[%emt 0:00:30]} Bxe4 36. Kxc4 {[%emt 0:00:30]} c6 37. Kd4 {[%emt 0:00:30]} Bd5 38. e4 {[%emt 0:00:30]} Be6 39. Rg2 c5+ 40. Ke3 Re8 41. Rh2+ Kg6 {[%emt 0:06:30]} 42. Rh8 {[%emt 0:02:00]} Bg8 {[%emt 0:00:30]} 43. Bb2 {[%emt 0:00:30]} d5 {[%emt 0:00:30]} 44. e5 {[%emt 0:00:30]} d4+ {[%emt 0:00:30]} 45. Ke4 {[%emt 0:00:30]} Kxg7 {[%emt 0:00:30]} 46. Rh2 {[%emt 0:00:30]} Bh7+ {[%emt 0:00:30]} 47. Kd5 {[%emt 0:00:30]} Rc8 {[%emt 0:00:30]} 48. Kc4 {[%emt 0:00:30]} Bg8+ {[%emt 0:00:30]} 49. Kd3 {[%emt 0:00:30]} Rb8 {[%emt 0:00:30]} 50. Rf2 {[%emt 0:00:30]} Bd5 {[%emt 0:00:30]} 51. Rh2 {[%emt 0:00:30]} Rb3+ {[%emt 0:00:30]} 52. Kc2 {[%emt 0:00:30]} Re3 {[%emt 0:00:30]} 53. Kd2 {[%emt 0:00:30]} Rxe5 {[%emt 0:00:30]} 54. Re2 {[%emt 0:00:30]} Rf5 {[%emt 0:00:30]} 55. Rh2 {[%emt 0:00:30]} Kg6 {[%emt 0:00:30]} 56. Re2 {[%emt 0:00:30]} Kf6 {[%emt 0:00:30]} 57. Rh2 {[%emt 0:00:30]} Ke5 {[%emt 0:00:30]} 58. Re2+ {[%emt 0:00:30]} Be4 {[%emt 0:00:30]} 59. Rh2 {[%emt 0:00:30]} Kd5 {[%emt 0:00:30]} 60. Rh8 {[%emt 0:00:30]} Rf2+ {[%emt 0:00:30]} 61. Kc1 {[%emt 0:00:30]} Rc2+ {[%emt 0:00:30]} 0-1

[Event "XIII Mediterranean Championship 2023"]
[Site "Castell-Platja d Aro"]
[Date "2023.11.08"]
[Round "6.29"]
[White "Parramon Arimany, Marc"]
[Black "Teixidor Banus, Josep Maria"]
[Result "1-0"]
[ECO "B06"]
[WhiteElo "1834"]
[BlackElo "1669"]
[Annotator "NA RC"]
[PlyCount "57"]
[EventDate "2023.10.26"]
[EventType "swiss"]
[EventCountry "ESP"]
[SourceTitle "playchess.com"]
[Source "ChessBase"]
[SourceQuality "1"]
[TimeControl "5400+30"]

1. e4 {[%emt 1:31:00]} d6 {[%emt 1:31:00]} 2. d4 {[%emt 0:00:30]} g6 {[%emt 0:00:30]} 3. f4 {[%emt 0:00:30]} e6 {[%emt 0:00:30]} 4. Nf3 {[%emt 0:00:30]} Bg7 {[%emt 0:00:30]} 5. c3 {[%emt 0:00:30]} Ne7 {[%emt 0:00:30]} 6. Bd3 {[%emt 0:00:30]} a6 {[%emt 0:00:30]} 7. Be3 {[%emt 0:00:30]} b6 {[%emt 0:00:30]} 8. Nbd2 {[%emt 0:00:30]} Bb7 {[%emt 0:00:30]} 9. O-O {[%emt 0:00:30]} Nd7 {[%emt 0:00:30]} 10. Qe2 {[%emt 0:00:30]} O-O {[%emt 0:00:30]} 11. h4 {[%emt 0:00:30]} Nf6 {[%emt 0:00:30]} 12. Ng5 {[%emt 0:00:30]} h6 {[%emt 0:00:30]} 13. Nh3 {[%emt 0:00:30]} h5 {[%emt 0:00:30]} 14. f5 {[%emt 0:00:30]} Ng4 {[%emt 0:00:30]} 15. fxe6 {[%emt 0:00:30]} fxe6 {[%emt 0:00:30]} 16. Rxf8+ {[%emt 0:00:30]} Qxf8 {[%emt 0:00:30]} 17. Rf1 {[%emt 0:00:30]} Qe8 {[%emt 0:00:30]} 18. Ng5 {[%emt 0:00:30]} Bc8 {[%emt 0:00:30]} 19. Ndf3 {[%emt 0:00:30]} b5 {[%emt 0:00:30]} 20. Nh2 {[%emt 0:00:30]} e5 {[%emt 0:00:30]} 21. Bc2 {[%emt 0:00:30]} Nf6 {[%emt 0:00:30]} 22. Bb3+ {[%emt 0:00:30]} d5 {[%emt 0:00:30]} 23. dxe5 {[%emt 0:00:30]} Ng4 {[%emt 0:00:30]} 24. Nxg4 {[%emt 0:00:30]} Bxg4 {[%emt 0:00:30]} 25. Qf2 {[%emt 0:00:30]} c6 {[%emt 0:00:30]} 26. e6 {[%emt 0:00:30]} dxe4 27. Qf7+ {[%emt 0:00:30]} Kh8 {[%emt 0:01:00]} 28. Bd4 {[%emt 0:00:30]} Nf5 {[%emt 0:00:30]} 29. Rxf5 {[%emt 0:00:30]} 1-0

[Event "XIII Mediterranean Championship 2023"]
[Site "Castell-Platja d Aro"]
[Date "2023.11.08"]
[Round "6.30"]
[White "Garcia Rodriguez, Laia"]
[Black "Ballo Serrano, Jan"]
[Result "0-1"]
[ECO "C54"]
[WhiteElo "1811"]
[BlackElo "1512"]
[Annotator "NA RC"]
[PlyCount "120"]
[EventDate "2023.10.26"]
[EventType "swiss"]
[EventCountry "ESP"]
[SourceTitle "playchess.com"]
[Source "ChessBase"]
[SourceQuality "1"]
[TimeControl "5400+30"]

1. e4 {[%emt 1:31:00]} e5 {[%emt 1:31:00]} 2. Nf3 {[%emt 0:00:30]} Nc6 {[%emt 0:00:30]} 3. Bc4 {[%emt 0:00:30]} Nf6 {[%emt 0:00:30]} 4. d3 {[%emt 0:00:30]} Bc5 {[%emt 0:00:30]} 5. c3 {[%emt 0:00:30]} d6 {[%emt 0:00:30]} 6. Bb3 {[%emt 0:00:30]} h6 {[%emt 0:00:30]} 7. Nbd2 {[%emt 0:00:30]} Bb6 {[%emt 0:00:30]} 8. O-O {[%emt 0:00:30]} O-O {[%emt 0:00:30]} 9. Re1 {[%emt 0:00:30]} Ne7 {[%emt 0:00:30]} 10. Nf1 {[%emt 0:00:30]} c6 {[%emt 0:00:30]} 11. h3 {[%emt 0:00:30]} Ng6 {[%emt 0:00:30]} 12. Ng3 {[%emt 0:00:30]} Be6 {[%emt 0:00:30]} 13. Bc2 {[%emt 0:00:30]} Nh7 {[%emt 0:00:30]} 14. d4 {[%emt 0:00:30]} Nh4 {[%emt 0:00:30]} 15. dxe5 {[%emt 0:00:30]} Nxf3+ {[%emt 0:00:30]} 16. Qxf3 {[%emt 0:00:30]} dxe5 {[%emt 0:00:30]} 17. Nf5 {[%emt 0:00:30]} Qf6 {[%emt 0:00:30]} 18. Be3 {[%emt 0:00:30]} Ng5 {[%emt 0:00:30]} 19. Qg3 {[%emt 0:00:30]} Rfd8 {[%emt 0:00:30]} 20. f3 {[%emt 0:00:30]} Rd2 {[%emt 0:00:30]} 21. Bb3 {[%emt 0:00:30]} Bxb3 {[%emt 0:00:30]} 22. axb3 {[%emt 0:00:30]} Bxe3+ {[%emt 0:00:30]} 23. Nxe3 {[%emt 0:00:30]} Rxb2 {[%emt 0:00:30]} 24. h4 {[%emt 0:00:30]} Ne6 {[%emt 0:00:30]} 25. b4 {[%emt 0:00:30]} Nf4 {[%emt 0:00:30]} 26. Kh1 {[%emt 0:00:30]} Rd8 {[%emt 0:00:30]} 27. Red1 {[%emt 0:00:30]} Nd3 {[%emt 0:00:30]} 28. Rf1 {[%emt 0:00:30]} Nf4 {[%emt 0:00:30]} 29. Rfd1 {[%emt 0:00:30]} Nd3 {[%emt 0:00:30]} 30. Rf1 {[%emt 0:00:30]} Nf4 {[%emt 0:00:30]} 31. Rfd1 {[%emt 0:00:30]} a6 {[%emt 0:00:30]} 32. Rab1 {[%emt 0:00:30]} Rxb1 {[%emt 0:00:30]} 33. Rxb1 {[%emt 0:00:30]} Rd2 {[%emt 0:00:30]} 34. Rd1 {[%emt 0:00:30]} Rxd1+ {[%emt 0:00:30]} 35. Nxd1 {[%emt 0:00:30]} Qd8 {[%emt 0:00:30]} 36. Qe1 {[%emt 0:00:30]} Qd3 {[%emt 0:00:30]} 37. Ne3 {[%emt 0:00:30]} Ne2 {[%emt 0:00:30]} 38. Nd1 {[%emt 0:00:30]} b6 {[%emt 0:00:30]} 39. Nb2 {[%emt 0:00:30]} Qc2 {[%emt 0:00:30]} 40. Nd1 {[%emt 0:00:30]} a5 {[%emt 0:00:30]} 41. Ne3 {[%emt 0:00:30]} Qd3 {[%emt 0:00:30]} 42. bxa5 {[%emt 0:00:30]} Qxe3 {[%emt 0:00:30]} 43. a6 {[%emt 0:00:30]} b5 {[%emt 0:00:30]} 44. a7 {[%emt 0:00:30]} Qxa7 {[%emt 0:00:30]} 45. Qxe2 {[%emt 0:00:30]} Qa1+ {[%emt 0:00:30]} 46. Kh2 {[%emt 0:00:30]} Qxc3 {[%emt 0:00:30]} 47. Qd1 {[%emt 0:00:30]} b4 {[%emt 0:00:30]} 48. Qd8+ {[%emt 0:00:30]} Kh7 {[%emt 0:00:30]} 49. Qd7 {[%emt 0:00:30]} Qc4 {[%emt 0:00:30]} 50. Qf5+ {[%emt 0:00:30]} g6 {[%emt 0:00:30]} 51. Qxe5 {[%emt 0:00:30]} b3 {[%emt 0:00:30]} 52. Qf6 {[%emt 0:00:30]} Qe6 {[%emt 0:00:30]} 53. Qc3 {[%emt 0:00:30]} c5 {[%emt 0:00:30]} 54. Qb2 {[%emt 0:00:30]} c4 {[%emt 0:00:30]} 55. Qc3 {[%emt 0:00:30]} Qd6+ {[%emt 0:00:30]} 56. Kh3 {[%emt 0:00:30]} Qd3 {[%emt 0:00:30]} 57. Qf6 {[%emt 0:00:30]} Kg8 {[%emt 0:00:30]} 58. Qe5 {[%emt 0:00:30]} Qd7+ {[%emt 0:00:30]} 59. Kh2 {[%emt 0:00:30]} Qb7 {[%emt 0:00:30]} 60. Qb2 {[%emt 0:00:30]} c3 {[%emt 0:00:30]} 0-1

[Event "XIII Mediterranean Championship 2023"]
[Site "Castell-Platja d Aro"]
[Date "2023.11.08"]
[Round "6.31"]
[White "Burset Camps, Guillem"]
[Black "Moran Cabezas, Eric"]
[Result "0-1"]
[ECO "E14"]
[WhiteElo "1408"]
[BlackElo "1736"]
[Annotator "NA RC"]
[PlyCount "34"]
[EventDate "2023.10.26"]
[EventType "swiss"]
[EventCountry "ESP"]
[SourceTitle "playchess.com"]
[Source "ChessBase"]
[SourceQuality "1"]
[TimeControl "5400+30"]

1. d4 {[%emt 0:04:24]} Nf6 {[%emt 0:00:07]} 2. Nf3 {[%emt 0:01:04]} d5 {[%emt 0:00:11]} 3. c4 {[%emt 0:00:31]} e6 {[%emt 0:00:22]} 4. e3 {[%emt 0:03:59]} Be7 {[%emt 0:01:20]} 5. Nc3 {[%emt 0:00:41]} O-O {[%emt 0:00:18]} 6. Bd3 {[%emt 0:01:54]} Nbd7 {[%emt 0:00:36]} 7. O-O {[%emt 0:00:44]} b6 {[%emt 0:01:23]} 8. b3 {[%emt 0:03:26]} Bb7 {[%emt 0:00:41]} 9. Bb2 {[%emt 0:00:43]} c5 {[%emt 0:00:33]} 10. cxd5 {[%emt 0:04:15]} exd5 {[%emt 0:00:49]} 11. Rc1 {[%emt 0:02:30]} Rc8 {[%emt 0:00:22]} 12. Qe2 {[%emt 0:05:19]} Re8 {[%emt 0:03:20]} 13. Ba6 {[%emt 0:02:04]} Bxa6 {[%emt 0:13:13]} 14. Qxa6 {[%emt 0:00:55]} Ra8 {[%emt 0:04:01]} 15. Rc2 {[%emt 0:02:10]} Qc8 {[%emt 0:00:26]} 16. Qe2 {[%emt 0:02:52]} Qb7 {[%emt 0:00:41]} 17. Rfc1 {[%emt 0:00:31]} Rac8 {[%emt 0:02:52]} 0-1

[Event "XIII Mediterranean Championship 2023"]
[Site "Castell-Platja d Aro"]
[Date "2023.11.08"]
[Round "6.32"]
[White "Hernando Rodrigo, Inmaculada"]
[Black "Delbos, Jean-Louis"]
[Result "1/2-1/2"]
[ECO "C63"]
[WhiteElo "1734"]
[BlackElo "1573"]
[Annotator "NA RC"]
[PlyCount "81"]
[EventDate "2023.10.26"]
[EventType "swiss"]
[EventCountry "ESP"]
[SourceTitle "playchess.com"]
[Source "ChessBase"]
[SourceQuality "1"]
[TimeControl "5400+30"]

1. e4 {[%emt 0:22:58]} e5 {[%emt 0:00:17]} 2. Nf3 {[%emt 0:00:06]} Nc6 {[%emt 0:00:06]} 3. Bb5 {[%emt 0:00:09]} f5 {[%emt 0:00:11]} 4. Bxc6 {[%emt 0:03:34]} dxc6 {[%emt 0:00:53]} 5. O-O {[%emt 0:01:11]} fxe4 {[%emt 0:01:21]} 6. Nxe5 {[%emt 0:00:40]} Qd4 {[%emt 0:02:48]} 7. Ng4 {[%emt 0:01:33]} Bxg4 {[%emt 0:02:16]} 8. Qxg4 {[%emt 0:00:04]} Nf6 {[%emt 0:00:25]} 9. Qe6+ {[%emt 0:01:42]} Be7 {[%emt 0:00:47]} 10. Re1 {[%emt 0:01:36]} Qd5 {[%emt 0:01:36]} 11. Qh3 {[%emt 0:02:33]} O-O {[%emt 1:25:20]} 12. d3 {[%emt 1:00:24]} Bc5 {[%emt 0:00:00]} 13. Be3 {[%emt 0:00:00]} Bxe3 {[%emt 0:00:00]} 14. Rxe3 {[%emt 0:00:00]} exd3 {[%emt 0:00:00]} 15. Nc3 {[%emt 0:00:00]} Qc5 {[%emt 0:00:00]} 16. cxd3 {[%emt 0:00:00]} Rae8 {[%emt 0:00:00]} 17. Rae1 {[%emt 0:00:00]} Rxe3 {[%emt 0:00:00]} 18. Qxe3 {[%emt 0:00:00]} Qxe3 {[%emt 0:00:00]} 19. fxe3 {[%emt 0:00:00]} Ng4 {[%emt 0:00:00]} 20. h3 {[%emt 0:00:00]} Ne5 {[%emt 0:00:00]} 21. d4 {[%emt 0:00:00]} Nd3 {[%emt 0:00:00]} 22. Re2 {[%emt 0:00:00]} c5 {[%emt 0:00:00]} 23. d5 {[%emt 0:00:00]} a6 {[%emt 0:00:00]} 24. e4 {[%emt 0:00:00]} Ne5 {[%emt 0:00:00]} 25. b3 {[%emt 0:00:00]} Rf6 {[%emt 0:00:00]} 26. Na4 {[%emt 0:00:00]} b6 {[%emt 0:00:00]} 27. Nb2 {[%emt 0:00:00]} c6 {[%emt 0:00:00]} 28. Nc4 {[%emt 0:00:00]} Nxc4 {[%emt 0:00:00]} 29. bxc4 {[%emt 0:00:00]} cxd5 {[%emt 0:00:00]} 30. cxd5 {[%emt 0:00:00]} Kf7 {[%emt 0:00:00]} 31. e5 {[%emt 0:00:00]} Rf5 {[%emt 0:00:00]} 32. e6+ {[%emt 0:00:00]} Ke8 {[%emt 0:00:00]} 33. Rd2 {[%emt 0:00:00]} c4 {[%emt 0:00:00]} 34. d6 {[%emt 0:00:00]} Re5 {[%emt 0:00:00]} 35. e7 {[%emt 0:00:00]} Kd7 {[%emt 0:00:00]} 36. Kf2 {[%emt 0:00:00]} c3 {[%emt 0:00:00]} 37. Re2 {[%emt 0:00:00]} Rxe2+ {[%emt 0:00:00]} 38. Kxe2 {[%emt 0:00:00]} b5 {[%emt 0:00:00]} 39. a3 {[%emt 0:00:00]} a5 {[%emt 0:00:00]} 40. Kd3 {[%emt 0:14:00]} b4 {[%emt 0:00:00]} 41. Kc2 {[%emt 0:00:00]} 1/2-1/2

[Event "XIII Mediterranean Championship 2023"]
[Site "Castell-Platja d Aro"]
[Date "2023.11.09"]
[Round "7.1"]
[White "Asis Gargatagli, Hipolito"]
[Black "Iermito, Sebastian"]
[Result "1/2-1/2"]
[ECO "C77"]
[WhiteElo "2511"]
[BlackElo "2521"]
[Annotator "RC"]
[PlyCount "61"]
[EventDate "2023.10.26"]
[EventType "swiss"]
[EventCountry "ESP"]
[SourceTitle "playchess.com"]
[Source "ChessBase"]
[SourceQuality "1"]
[TimeControl "5400+30"]

1. e4 {[%emt 0:00:03]} e5 {[%emt 0:00:04]} 2. Nf3 {[%emt 0:00:06]} Nc6 {[%emt 0:00:03]} 3. Bb5 {[%emt 0:00:10]} a6 {[%emt 0:00:06]} 4. Ba4 {[%emt 0:00:08]} d6 {[%emt 0:00:13]} 5. Nc3 {[%emt 0:00:21]} Nf6 {[%emt 0:03:29]} 6. Bxc6+ {[%emt 0:04:14]} bxc6 {[%emt 0:00:01]} 7. d4 {[%emt 0:00:11]} exd4 {[%emt 0:00:17]} 8. Nxd4 {[%emt 0:02:09]} c5 {[%emt 0:01:36]} 9. Nc6 {[%emt 0:08:25]} Qd7 {[%emt 0:00:05]} 10. Na5 {[%emt 0:00:04]} Be7 {[%emt 0:09:15]} 11. O-O {[%emt 0:05:52]} O-O {[%emt 0:00:10]} 12. Qf3 {[%emt 0:10:14]} Rb8 {[%emt 0:08:18]} 13. b3 {[%emt 0:08:58]} Ng4 {[%emt 0:06:16]} 14. Bb2 {[%emt 0:11:21]} Bf6 {[%emt 0:03:36]} 15. h3 {[%emt 0:06:08]} Ne5 {[%emt 0:01:05]} 16. Qg3 {[%emt 0:00:09]} Ng6 {[%emt 0:13:03]} 17. Rad1 {[%emt 0:06:02]} Re8 {[%emt 0:10:03]} 18. f4 {[%emt 0:09:46]} Bd4+ {[%emt 0:05:49]} 19. Kh1 {[%emt 0:02:14]} f5 {[%emt 0:02:05]} 20. Rde1 {[%emt 0:01:08]} Ne7 {[%emt 0:08:52]} 21. e5 {[%emt 0:04:55]} Ng6 {[%emt 0:04:48]} 22. exd6 {[%emt 0:05:49]} cxd6 {[%emt 0:04:00]} 23. Qf3 Rxe1 {[%emt 0:00:30]} 24. Rxe1 Bb7 {[%emt 0:00:30]} 25. Nxb7 Qxb7 {[%emt 0:00:30]} 26. Re8+ Rxe8 {[%emt 0:00:30]} 27. Qxb7 Re1+ {[%emt 0:00:30]} 28. Kh2 Bg1+ {[%emt 0:00:30]} 29. Kh1 Bf2+ {[%emt 0:00:30]} 30. Kh2 Bg1+ {[%emt 0:00:30]} 31. Kh1 1/2-1/2